[Event "Icelandic Championship 2022"]
[Site "Selfoss"]
[Date "2022.04.27"]
[Round "7.3"]
[White "Stefansson, Vignir Vatnar"]
[Black "Thorhallsson, Simon"]
[Result "1-0"]
[ECO "A63"]
[WhiteElo "2484"]
[BlackElo "2245"]
[Annotator "TA"]
[PlyCount "63"]
[EventDate "2022.04.21"]
[EventType "tourn"]
[EventCountry "ISL"]
[SourceTitle "playchess.com"]
[Source "ChessBase"]
[SourceQuality "1"]
[TimeControl "40/5400+30:1800+30"]

{[%evp 24,63,48,15,20,0,3,12,31,-7,0,-22,-18,-26,-39,-101,-108,-93,-98,-172,-133,-211,-173,-179,-176,-249,-29,-42,70,70,70,76,78,78,614,618,626,594,535,512,1045,1031]} 1. c4 {[%emt 0:00:02]} Nf6 {[%emt 0:00:05]} 2. Nc3 {[%emt 0:00:15]} g6 {[%emt 0:00:06]} 3. g3 {[%emt 0:01:52]} Bg7 {[%emt 0:00:06]} 4. Bg2 {[%emt 0:00:05]} O-O {[%emt 0:00:04]} 5. d4 {[%emt 0:00:04]} d6 {[%emt 0:00:05]} 6. Nf3 {[%emt 0:00:04]} c5 {[%emt 0:00:10]} 7. d5 {[%emt 0:05:35]} e6 {[%emt 0:00:15]} 8. O-O {[%emt 0:00:57]} Re8 {[%emt 0:05:37]} 9. Re1 {[%emt 0:07:34]} exd5 {[%emt 0:02:17]} 10. cxd5 {[%emt 0:00:05]} a6 {[%emt 0:01:41]} 11. a4 {[%emt 0:00:05]} Nbd7 {[%emt 0:01:23]} 12. Bf4 {[%emt 0:00:52]} Qe7 {[%emt 0:04:04]} 13. e4 {[%emt 0:01:06]} Ng4 $1 {[%emt 0:05:51] A63: Modern Benoni: Fianchetto Variation: 9...Nbd7.} 14. Bg5 {[%emt 0:06:43]} f6 {[%emt 0:08:31]} 15. Bf4 {[%emt 0:01:55] [#]} Rb8 $146 {[%emt 0:02:01] The position is equal.} ({Predecessor:} 15... Nge5 16. Qe2 Nxf3+ 17. Bxf3 g5 18. Be3 Ne5 19. Bh5 g4 20. Red1 Rf8 21. f4 gxf3 22. Bxf3 {0-1 (35) Mirschinka,D (2265)-Schunk,T (2300) Germany 1997}) 16. Qe2 {[%emt 0:06:42]} Nde5 {[%emt 0:17:31]} 17. Nd2 {[%emt 0:01:38]} g5 {[%emt 0:01:17]} 18. Bxe5 {[%emt 0:00:29]} Nxe5 {[%emt 0:00:29]} 19. Nc4 {[%emt 0:06:08]} (19. f4 $15 Bg4 20. Qe3) 19... Nxc4 $17 {[%emt 0:01:57]} 20. Qxc4 {[%emt 0:00:04]} f5 {[%emt 0:04:10]} 21. f4 {[%emt 0:01:40]} (21. Qe2 $17 {was called for.}) 21... Bd4+ {[%emt 0:07:06]} 22. Kf1 {[%emt 0:01:09]} (22. Kh1 $17 {might work better.}) 22... gxf4 {[%emt 0:01:54]} 23. exf5 {[%emt 0:00:15]} Qf8 {[%emt 0:01:52]} 24. g4 {[%emt 0:03:15]} (24. Rxe8 $142 Qxe8 25. Re1) 24... f3 $2 {[%emt 0:13:33] [#]} (24... Rxe1+ $19 25. Rxe1 b5 26. axb5 axb5) 25. Bxf3 $11 {[%emt 0:00:43]} Bxf5 {[%emt 0:01:16]} 26. gxf5 $14 {[%emt 0:01:24] The board is on fire.} Qxf5 {[%emt 0:00:15][%cal Rf5f3]} 27. Kg2 {[%emt 0:00:13]} Kh8 {[%emt 0:07:44] [#] ( -> ...Rg8+)} (27... Rf8 $2 28. Rf1 $18) 28. Ne4 $1 {[%emt 0:06:08]} Rxe4 $4 {[%emt 0:03:53][%mdl 8192] Loses the game.} 29. Bxe4 $18 {[%emt 0:00:46] White is clearly winning.} Qg4+ {[%emt 0:04:03]} 30. Kh1 {[%emt 0:00:08]} Rf8 {[%emt 0:00:17] White must now prevent ...Rf2.} 31. Qe2 {[%emt 0:00:41]} Qh3 {[%emt 0:00:17]} (31... Qxe2 $142 32. Rxe2 Rf7) 32. Rf1 {[%emt 0:00:44] Weighted Error Value: White=0.31/Black=0.69} 1-0

[Event "Icelandic Championship 2022"]
[Site "Selfoss"]
[Date "2022.04.27"]
[Round "7.4"]
[White "Heimisson, Hilmir Freyr"]
[Black "Stefansson, Hannes"]
[Result "1-0"]
[ECO "C68"]
[WhiteElo "2312"]
[BlackElo "2520"]
[Annotator "TA"]
[PlyCount "183"]
[EventDate "2022.04.21"]
[EventType "tourn"]
[EventCountry "ISL"]
[SourceTitle "playchess.com"]
[Source "ChessBase"]
[SourceQuality "1"]
[TimeControl "40/5400+30:1800+30"]

{[%evp 20,183,0,-13,-10,0,0,-27,-19,-10,-4,-16,0,0,38,25,29,29,48,31,17,23,45,10,37,0,-7,-19,33,0,0,-37,-25,-107,-107,-107,-107,-107,-107,-116,-108,-118,-118,-194,-194,-219,-219,-257,-260,-347,-353,-350,-361,-361,-354,-345,-339,-329,-332,-323,-225,-215,-97,-110,-102,-118,0,0,0,0,0,0,0,-42,0,0,0,0,117,117,117,117,117,117,117,117,117,117,117,117,117,117,117,117,117,117,117,117,12819,12819,12820,117,12820,12820,12823,12820,12820,12820,12818,11877,12823,12823,12825,12307,12826,12826,12827,12827,12827,12828,12828,12829,12829,12829,12829,12829,12830,12829,12830,12830,12830,12830,12832,12832,12833,12833,12833,12832,12833,12833,12833,12830,12833,12829,12831,12831,12831,12827,12833,12834,12836,12837,12837,12837,12839,12839,12839,12839,12840,12840,12844,12841,12842,12841,12841,11950]} 1. e4 {[%emt 0:00:30]} e5 {[%emt 0:00:32]} 2. Nf3 {[%emt 0:00:52]} Nc6 {[%emt 0:00:12]} 3. Bb5 {[%emt 0:02:32]} a6 {[%emt 0:00:18]} 4. Bxc6 {[%emt 0:01:03]} dxc6 {[%emt 0:00:21]} 5. O-O {[%emt 0:01:42]} Qd6 {[%emt 0:03:20]} 6. Na3 {[%emt 0:01:16]} Be6 {[%emt 0:01:17]} 7. Qe2 {[%emt 0:00:48]} Bg4 {[%emt 0:11:38]} 8. Qe3 {[%emt 0:10:56]} Qf6 {[%emt 0:02:47]} 9. Nc4 {[%emt 0:13:44]} Bxf3 {[%emt 0:00:41]} 10. Qxf3 {[%emt 0:00:05]} Qxf3 {[%emt 0:00:08]} 11. gxf3 {[%emt 0:00:03]} Bd6 {[%emt 0:01:20]} 12. d3 {[%emt 0:07:00]} Ne7 {[%emt 0:01:10]} 13. Be3 {[%emt 0:02:13]} Ng6 {[%emt 0:02:22]} 14. Rfd1 {[%emt 0:06:51]} O-O-O {[%emt 0:03:45]} 15. Kf1 {[%emt 0:01:18]} Rhf8 {[%emt 0:05:34]} 16. Ke2 {[%emt 0:01:18]} f5 {[%emt 0:01:52]} 17. Rg1 {[%emt 0:03:34]} Rf7 {[%emt 0:08:18]} 18. Rg5 {[%emt 0:16:43]} ({Much worse is} 18. Nxd6+ cxd6 19. h4 fxe4 20. fxe4 Nf8 $11) 18... Ne7 {[%emt 0:01:53]} 19. Rag1 {[%emt 0:02:02]} g6 {[%emt 0:03:44]} 20. h4 {[%emt 0:00:40]} Rf6 {[%emt 0:05:53]} 21. R5g2 {[%emt 0:01:43]} f4 {[%emt 0:01:14]} 22. Bc1 {[%emt 0:02:09]} c5 {[%emt 0:01:43]} 23. c3 {[%emt 0:09:25]} h6 {[%emt 0:04:25]} ({Better is} 23... Nc6 $11) 24. Nd2 {[%emt 0:01:28]} (24. a3 $5 {[%cal Rb2b4]}) 24... Kd7 {[%emt 0:01:47]} 25. Nf1 {[%emt 0:00:28]} Re6 {[%emt 0:01:38]} 26. Nh2 {[%emt 0:02:00]} (26. Nd2 $11) 26... h5 $1 $17 {[%emt 0:01:20]} 27. Nf1 {[%emt 0:00:34]} Ke8 $1 {[%emt 0:00:31]} 28. Nd2 {[%emt 0:00:23]} Kf7 {[%emt 0:01:10]} 29. b3 {[%emt 0:07:39]} Nc6 {[%emt 0:00:47]} 30. Rh2 {[%emt 0:01:13]} b5 {[%emt 0:02:10]} 31. Bb2 {[%emt 0:00:26]} (31. Rhh1 $17) 31... Be7 $19 {[%emt 0:00:27]} 32. Rd1 {[%emt 0:02:23]} Red6 {[%emt 0:00:40]} 33. Nb1 {[%emt 0:00:56]} c4 $1 {[%emt 0:06:03]} 34. bxc4 {[%emt 0:00:38]} bxc4 {[%emt 0:00:06]} 35. d4 {[%emt 0:00:20]} exd4 {[%emt 0:00:06]} 36. cxd4 {[%emt 0:00:08]} Nxd4+ {[%emt 0:00:09]} 37. Rxd4 {[%emt 0:00:40]} Rxd4 {[%emt 0:00:06]} 38. Bxd4 {[%emt 0:00:03]} Rxd4 {[%emt 0:00:09]} 39. Rh1 {[%emt 0:00:30]} Bb4 {[%emt 0:00:46]} 40. Rc1 {[%emt 0:01:13]} c3 {[%emt 0:00:22]} (40... Kf6 $19 {aiming for ...g5.} 41. a3 Ba5) 41. a3 $17 {[%emt 0:03:03]} Bd6 $1 {[%emt 0:05:48]} 42. Rxc3 {[%emt 0:02:31]} g5 {[%emt 0:00:24]} (42... Ra4 $1 $17 43. Rc2 Ra5) 43. hxg5 $11 {[%emt 0:01:16]} h4 {[%emt 0:00:41]} 44. Rc6 {[%emt 0:04:22]} Ra4 {[%emt 0:03:09]} 45. Nd2 {[%emt 0:08:08]} h3 {[%emt 0:02:38]} 46. Kf1 {[%emt 0:04:43]} Rxa3 {[%emt 0:08:02]} 47. Kg1 {[%emt 0:01:34]} Ke6 {[%emt 0:04:28]} 48. g6 {[%emt 0:03:56]} Ra5 {[%emt 0:01:52]} (48... Ra1+ $11 {keeps the balance.} 49. Kh2 Ra2) 49. Nc4 $1 $16 {[%emt 0:01:31]} Rc5 {[%emt 0:05:19]} 50. Nxd6 {[%emt 0:00:37]} cxd6 {[%emt 0:02:01]} (50... Rxc6 $2 51. g7 $1 Ke7 52. g8=Q $1 $18) 51. Rxa6 {[%emt 0:00:19]} Rg5+ {[%emt 0:00:15]} 52. Kh2 {[%emt 0:00:05]} Rxg6 {[%emt 0:02:19]} 53. Kxh3 {[%emt 0:00:05]} Rg8 {[%emt 0:01:57]} 54. Ra5 {[%emt 0:00:38]} Rh8+ {[%emt 0:00:45]} 55. Kg4 {[%emt 0:01:45]} Rh2 {[%emt 0:00:30]} 56. Ra2 {[%emt 0:00:04]} Ke5 {[%emt 0:00:11]} 57. Rd2 {[%emt 0:00:09]} Rg2+ {[%emt 0:00:27]} 58. Kh3 {[%emt 0:00:11]} Rg1 $2 {[%emt 0:01:01][%mdl 8192]} (58... Rg6 $16 59. Rd5+ Ke6) 59. Rd5+ $18 {[%emt 0:00:30]} Ke6 {[%emt 0:00:05]} 60. Kh2 $2 {[%emt 0:01:15]} (60. Rf5 $1 $18 Rh1+ 61. Kg4) 60... Rg8 $2 {[%emt 0:00:45][%mdl 8192]} (60... Rg6 $16 61. Kh3 Rg8) 61. Rf5 $1 $18 {[%emt 0:00:07]} Rh8+ {[%emt 0:00:14]} 62. Kg2 {[%emt 0:00:05]} Rh4 {[%emt 0:00:03]} 63. Kg1 $1 {[%emt 0:01:19]} Ke7 {[%emt 0:00:16]} 64. Kf1 {[%emt 0:00:04]} Ke6 {[%emt 0:01:46]} 65. Kg2 $1 {[%emt 0:00:05]} Ke7 {[%emt 0:00:05]} 66. Rg5 $1 {[%emt 0:00:08]} Rh8 {[%emt 0:00:06]} 67. Rg4 {[%emt 0:00:15]} Rf8 {[%emt 0:00:07] [#]} 68. Kh3 $1 {[%emt 0:00:06]} Rf7 {[%emt 0:04:55] [#]} 69. Rh4 $1 {[%emt 0:00:52]} Ke6 {[%emt 0:02:06]} 70. Kg4 {[%emt 0:00:44]} Rf8 {[%emt 0:00:44]} 71. Rh6+ {[%emt 0:00:51]} Ke5 {[%emt 0:00:07]} 72. Rh5+ {[%emt 0:00:05]} Ke6 {[%emt 0:00:04]} 73. Rg5 {[%emt 0:01:26]} Rf7 {[%emt 0:00:17]} 74. Rf5 {[%emt 0:02:38]} Ra7 {[%emt 0:06:14]} 75. Kxf4 {[%emt 0:00:09]} Ra2 {[%emt 0:00:05]} 76. Kg3 {[%emt 0:00:18]} Ra3 {[%emt 0:00:08]} 77. Rd5 {[%emt 0:00:05]} Rb3 {[%emt 0:00:06]} 78. Kf4 {[%emt 0:00:05]} Ra3 {[%emt 0:00:26]} 79. Rd2 {[%emt 0:00:23]} Rb3 {[%emt 0:00:08]} 80. Re2 {[%emt 0:00:26]} Ra3 {[%emt 0:00:06]} 81. Re3 {[%emt 0:00:22]} Ra1 {[%emt 0:00:17]} 82. Rd3 {[%emt 0:00:34]} Re1 {[%emt 0:00:16]} 83. Rd2 {[%emt 0:00:04]} Ra1 {[%emt 0:00:52]} 84. Ke3 {[%emt 0:00:06]} Ra4 {[%emt 0:00:42]} 85. f4 {[%emt 0:00:16]} Ra3+ {[%emt 0:00:07]} 86. Rd3 {[%emt 0:00:06]} Ra1 {[%emt 0:00:09]} 87. f5+ {[%emt 0:00:17]} Ke7 {[%emt 0:00:05]} 88. Kf4 {[%emt 0:00:09]} Ra2 {[%emt 0:00:10]} 89. f3 {[%emt 0:00:06]} Ra1 {[%emt 0:00:06]} 90. Rb3 {[%emt 0:00:16]} Ra7 {[%emt 0:01:39]} 91. Kg5 {[%emt 0:01:57]} Kf7 {[%emt 0:01:33]} 92. Rd3 {[%emt 0:00:15]} 1-0

[Event "Icelandic Championship 2022"]
[Site "Selfoss"]
[Date "2022.04.27"]
[Round "7.5"]
[White "Thorhallsson, Throstur"]
[Black "Thorfinnsson, Bragi"]
[Result "1-0"]
[ECO "C45"]
[WhiteElo "2414"]
[BlackElo "2419"]
[Annotator "TA"]
[PlyCount "123"]
[EventDate "2022.04.21"]
[EventType "tourn"]
[EventCountry "ISL"]
[SourceTitle "playchess.com"]
[Source "ChessBase"]
[SourceQuality "1"]
[TimeControl "40/5400+30:1800+30"]

{[%evp 13,123,38,45,51,52,51,54,41,52,44,52,56,65,52,52,73,74,62,60,43,68,63,70,72,68,72,68,68,68,70,77,14,79,66,55,14,75,66,75,83,95,95,95,83,80,48,53,54,53,67,67,54,75,66,75,78,79,57,92,89,125,125,130,128,128,127,127,120,144,129,183,175,208,202,148,127,119,143,125,140,142,112,112,108,218,217,217,217,185,168,284,308,300,295,264,263,382,158,168,175,175,158,371,282,811,800,774,767,783,681,510,446]} 1. e4 {[%emt 0:00:22]} e5 {[%emt 0:00:30]} 2. Nf3 {[%emt 0:00:08]} Nc6 {[%emt 0:00:16]} 3. d4 {[%emt 0:00:23]} exd4 {[%emt 0:00:26]} 4. Nxd4 {[%emt 0:00:09]} Bb4+ {[%emt 0:01:36]} 5. c3 {[%emt 0:01:34]} Be7 {[%emt 0:00:48]} 6. Bc4 {[%emt 0:03:57]} Nf6 {[%emt 0:04:48]} 7. Nxc6 {[%emt 0:04:45]} bxc6 {[%emt 0:00:44]} 8. e5 {[%emt 0:01:59] C45: Scotch Game.} Nd5 {[%emt 0:00:28] The main line 8...Nd5 scores better than 8...Ne4.} 9. Qg4 {[%emt 0:08:21]} g6 {[%emt 0:03:43]} 10. Bh6 {[%emt 0:00:34] White is slightly better.} Nb6 {[%emt 0:07:38]} 11. Bb3 {[%emt 0:03:04] aiming for Qf3.} d5 {[%emt 0:01:28]} 12. Qg3 {[%emt 0:05:42] [#]} Ba6 $146 {[%emt 0:09:45]} ({Predecessor:} 12... Bf5 13. Nd2 a5 14. Rc1 Nd7 15. Bc2 Bxc2 16. Rxc2 Nc5 17. O-O Qd7 18. Nf3 Rg8 {½-½ (49) Warmerdam,M (2387)-Ernst,S (2553) Vlissingen 2017}) 13. Nd2 {[%emt 0:03:27][%cal Bb1d2,Bd2f3,Bf3e5][%mdl 32]} Qd7 {[%emt 0:02:15]} 14. O-O-O {[%emt 0:05:01][%cal Od2e4]} O-O-O {[%emt 0:01:51]} 15. Rhe1 {[%emt 0:01:01][%cal Od2e4] Prevents Be2.} c5 {[%emt 0:06:28]} 16. Nf3 {[%emt 0:03:17]} Bc4 {[%emt 0:04:29]} 17. e6 {[%emt 0:14:46]} fxe6 {[%emt 0:02:46]} 18. Ne5 {[%emt 0:02:46]} Qb5 {[%emt 0:00:20]} 19. Nxc4 {[%emt 0:11:12]} dxc4 {[%emt 0:03:51]} 20. Bc2 {[%emt 0:00:05] A strong pair of Bishops.} (20. Rxe6 $2 cxb3 21. Rxd8+ (21. Rxe7 $2 Rxd1+ 22. Kxd1 Qf1+ 23. Re1 Rd8+ 24. Bd2 bxa2 $19) 21... Rxd8 $19) 20... Na4 {[%emt 0:02:56]} 21. Bxa4 {[%emt 0:04:57]} (21. b3 cxb3 22. Rxd8+ (22. axb3 c4 $17) 22... Rxd8 23. axb3 c4 $1 $19) 21... Qxa4 {[%emt 0:00:04]} 22. Qf3 {[%emt 0:00:39] Really sharp!} (22. Qg4 $16 Qxa2 23. Qxe6+ Kb7 24. Rxd8 (24. Qxe7 Qa1+ 25. Kc2 Qa4+ 26. Kc1 Qa1+ 27. Kc2 Qa4+ 28. Kc1 Qa1+ $11) 24... Bxd8 25. Kc2 (25. Qd5+ c6 $16)) 22... Kb8 {[%emt 0:02:15]} (22... Rxd1+ $11 {remains equal.} 23. Rxd1 Kb8) 23. a3 {[%emt 0:01:05] Active counter play!} (23. Rxe6 Rxd1+ 24. Qxd1 Qxa2 $11) 23... Rxd1+ {[%emt 0:06:45]} 24. Rxd1 {[%emt 0:00:20]} Bd6 {[%emt 0:00:17]} (24... Rd8 $1 $11 {keeps the balance.}) 25. Qe4 {[%emt 0:02:06][%mdl 1024] White has strong compensation.} Re8 {[%emt 0:13:44]} 26. Be3 {[%emt 0:00:21]} Qb5 {[%emt 0:01:06]} 27. g3 {[%emt 0:00:53]} Re7 {[%emt 0:07:12]} 28. h4 {[%emt 0:00:23]} a6 {[%emt 0:01:21]} 29. g4 {[%emt 0:02:22]} Qb7 {[%emt 0:02:05]} 30. Qxc4 {[%emt 0:00:35]} Qb5 {[%emt 0:00:05]} 31. Qe4 {[%emt 0:00:52]} Qb7 {[%emt 0:00:39]} 32. Qc2 {[%emt 0:02:46]} Qf3 {[%emt 0:06:23]} 33. Qa4 {[%emt 0:01:28]} Kb7 {[%emt 0:00:34]} 34. Qb3+ {[%emt 0:01:01]} (34. Bg5 Rf7 $11) 34... Kc8 {[%emt 0:03:02]} 35. Qc4 {[%emt 0:01:14][%csl LRa6,LRc5]} Qc6 {[%emt 0:00:54]} 36. h5 {[%emt 0:02:44]} gxh5 {[%emt 0:02:20]} 37. gxh5 {[%emt 0:00:05]} Qb5 {[%emt 0:01:24]} 38. Qe4 {[%emt 0:00:29]} Qb7 {[%emt 0:01:04]} 39. Qg4 {[%emt 0:01:57]} Qc6 {[%emt 0:00:38]} 40. h6 {[%emt 0:03:08]} Kb7 {[%emt 0:00:24]} 41. Kb1 {[%emt 0:31:40][%cal Bc1b1,Bb1a2,Ba2a1][%mdl 32]} Qb5 {[%emt 0:04:11]} (41... e5 $16 {was necessary.} 42. Qc4 Qb5) 42. Ka2 $1 $18 {[%emt 0:00:00]} a5 {[%emt 0:02:07]} 43. Qe4+ {[%emt 0:00:00]} Qc6 {[%emt 0:02:35]} 44. Qc4 {[%emt 0:00:00]} a4 {[%emt 0:04:13] Against Qb3+} 45. Ka1 {[%emt 0:00:00]} Qa6 {[%emt 0:04:35]} 46. Qh4 {[%emt 0:00:00]} Qc6 {[%emt 0:01:53]} 47. Rg1 {[%emt 0:00:00]} Rd7 {[%emt 0:04:34]} 48. Qc4 {[%emt 0:00:00]} Re7 {[%emt 0:03:00]} (48... Be7 $16 49. Ka2 Bf6) 49. Rg5 {[%emt 0:00:00]} Qa6 {[%emt 0:02:24]} 50. Qxa6+ {[%emt 0:00:00]} Kxa6 {[%emt 0:00:03][%mdl 4096] Endgame KRB-KRB} 51. Rg7 {[%emt 0:00:00] Threatens to win with Bg5.} (51. Bxc5 Bxc5 52. Rxc5 e5 $16) 51... Kb5 {[%emt 0:02:23] [#]} (51... c6 {is a better defense.} 52. Bf4 e5 53. Rxe7 Bxe7 54. Bxe5 Bf8) 52. Bg5 $1 {[%emt 0:00:00]} Re8 {[%emt 0:00:00]} 53. Rxh7 {[%emt 0:00:00] Black must now prevent Rf7.} Rf8 {[%emt 0:00:00] Against Rf7} 54. Be3 {[%emt 0:00:00]} Bf4 {[%emt 0:01:13]} (54... Rf5 $142 55. Kb1 Kc6) 55. Re7 {[%emt 0:02:56]} ({But not} 55. Bxf4 Rxf4 56. Rh8 (56. Rxc7 Rxf2 57. Rh7 Rh2 $14) 56... Kc6 $18) (55. Rg7 $18 {has better winning chances.}) 55... Bxe3 $16 {[%emt 0:00:39]} 56. fxe3 {[%emt 0:00:05] KR-KR} Kc4 {[%emt 0:00:13] [#] ( -> ...Kb3)} 57. Ka2 {[%emt 0:01:43]} (57. Rxe6 $2 {leads to mate.} Kb3) 57... Kd3 $2 {[%emt 0:00:54] Black cannot hold the game after this.} (57... Rf6 $16 {keeps fighting.}) 58. h7 {[%emt 0:01:31]} c4 $2 {[%emt 0:01:37]} (58... Rh8 59. Rxc7 c4) 59. Rxe6 $18 {[%emt 0:01:03] White is clearly winning.} Rh8 {[%emt 0:01:32]} 60. Rh6 {[%emt 0:01:55]} Kxe3 {[%emt 0:00:49]} 61. Rh4 {[%emt 0:00:18]} Kd3 {[%emt 0:00:43]} 62. Kb1 {[%emt 0:00:49] Weighted Error Value: White=0.12 (very precise) /Black=0.22 (precise)} 1-0

[Event "Icelandic Championship 2022"]
[Site "Selfoss"]
[Date "2022.04.30"]
[Round "8.1"]
[White "Gretarsson, Hjorvar Steinn"]
[Black "Stefansson, Vignir Vatnar"]
[Result "1-0"]
[ECO "B51"]
[WhiteElo "2548"]
[BlackElo "2484"]
[Annotator "TA"]
[PlyCount "49"]
[EventDate "2022.04.21"]
[EventType "tourn"]
[EventCountry "ISL"]
[SourceTitle "playchess.com"]
[Source "ChessBase"]
[SourceQuality "1"]
[TimeControl "40/5400+30:1800+30"]

{[%evp 12,49,37,38,40,39,32,51,47,37,29,20,31,9,12,4,17,10,37,29,112,127,239,239,233,231,400,332,558,572,563,564,560,564,583,572,656,647,1147,1114]} 1. e4 {[%emt 0:07:57]} c5 {[%emt 0:06:03]} 2. Nf3 {[%emt 0:00:00]} d6 {[%emt 0:00:43]} 3. Bb5+ {[%emt 0:00:00]} Nc6 {[%emt 0:02:43]} 4. O-O {[%emt 0:00:00]} Bd7 {[%emt 0:00:02]} 5. Re1 {[%emt 0:00:00]} a6 {[%emt 0:01:03]} 6. Bf1 {[%emt 0:00:09]} Nf6 {[%emt 0:04:00]} 7. c3 {[%emt 0:03:50]} e6 {[%emt 0:01:13] B51: Sicilian: Moscow Variation (3 Bb5+) without 3...Bd7.} 8. d4 {[%emt 0:03:49]} cxd4 {[%emt 0:03:02]} 9. cxd4 {[%emt 0:00:53]} d5 {[%emt 0:00:35] White is slightly better.} 10. exd5 {[%emt 0:20:03]} Nxd5 {[%emt 0:00:39]} 11. Nc3 {[%emt 0:00:24] Strongly threatening Nxd5.} Be7 {[%emt 0:06:51] [#]} 12. Nxd5 $5 $146 {[%emt 0:03:33][%mdl 8] An interesting novelty.} ({Predecessor:} 12. Bd3 O-O 13. Bc2 Ncb4 14. Bb1 Nf6 15. Bg5 Bc6 16. a3 Bxf3 17. Qxf3 Nbd5 18. Qd3 {½-½ (38) Kislik,E (2380)-Annageldyev,O (2396) Budapest 2012}) 12... exd5 {[%emt 0:00:06]} 13. Bg5 {[%emt 0:00:28]} Be6 {[%emt 0:08:58] [#]} 14. Qb3 $1 {[%emt 0:19:39][%cal Ob3b7]} Bxg5 {[%emt 0:15:15]} (14... Rb8 15. Bd2) 15. Nxg5 {[%emt 0:00:11]} Nxd4 {[%emt 0:02:41]} (15... O-O $11 16. Nxe6 fxe6) 16. Qa4+ $40 {[%emt 0:05:53][%mdl 128] White wants a kill.} ({Of course not} 16. Qxb7 $6 O-O 17. Rad1 Qxg5 $11) 16... b5 {[%emt 0:01:13]} (16... Kf8 $16 {was necessary.}) 17. Qxd4 $18 {[%emt 0:01:32]} Qxg5 {[%emt 0:00:11] [#]} 18. f4 $1 {[%emt 0:02:56][%cal Bf2f4,Bf4f5][%mdl 32]} Qg4 {[%emt 0:08:40]} (18... Qf6 {is a better defense.} 19. Qxf6 gxf6) 19. Re3 {[%emt 0:04:42]} ({Less strong is} 19. h3 Qg6 $18) 19... Kd7 $2 {[%emt 0:03:09]} (19... O-O $2 20. Rg3 $18) (19... Qg6 20. Bd3 Qf6 21. Qxf6 gxf6) 20. h3 {[%emt 0:07:27] White is clearly winning.} Qh4 {[%emt 0:01:26]} 21. g3 {[%emt 0:00:37]} Qf6 {[%emt 0:03:37] [#]} 22. Re5 $1 {[%emt 0:00:20]} Rhc8 {[%emt 0:01:02]} 23. f5 {[%emt 0:01:26]} Rc2 {[%emt 0:00:04]} 24. Bd3 {[%emt 0:02:17]} Rd2 {[%emt 0:02:15][%cal Od2d3]} 25. Rae1 {[%emt 0:00:47] Weighted Error Value: White=0.05 (flawless) /Black=0.52} 1-0